fUST/lending_fUST_20251230
["ID","MTS","AMOUNT","RATE_DAILY","PERIOD"]
[400021469,1767029447300,-784.51,0.00023285,2]
[400021470,1767029447310,-500.0,0.00023285,2]
[400021471,1767029447319,-500.0,0.00023285,2]
[400021472,1767029447328,-500.0,0.00023286,2]
[400021473,1767029447337,-500.0,0.00023286,2]
[400021474,1767029447346,-395.63079341,0.00023286,2]
[400021475,1767029447355,-500.0,0.00023286,2]
[400021476,1767029447364,-500.0,0.00023286,2]
[400021477,1767029447373,-500.0,0.00023286,2]
[400021478,1767029447382,-500.0,0.00023286,2]
[400021479,1767029447391,-600.0,0.00023286,2]
[400021480,1767029447400,-4623.63,0.00023287,2]
[400021481,1767029447409,-896.2,0.00023287,2]
[400021482,1767029447421,-829.52,0.00023287,2]
[400021483,1767029447436,-959.91,0.00023287,2]
[400021484,1767029447447,-1511.84452644,0.00023287,2]
[400021485,1767029447458,-518.69347964,0.00023296,2]
[400021486,1767029447467,-2495.45,0.000233,14]
[400021487,1767029447477,-500.0,0.0002334,2]
[400021488,1767029447486,-285.0,0.00023354,2]
[400021489,1767029447495,-365.7068031,0.00023388,2]
[400021490,1767029447504,-13696.17441862,0.000234,3]
[400021491,1767029447513,-600.0,0.00023402,2]
[400021492,1767029447523,-560.0,0.00023411,2]
[400021493,1767029447532,-600.0,0.0002343,2]
[400021494,1767029447541,-600.0,0.00023492,2]
[400021495,1767029447551,-500.0,0.0002355,2]
[400021496,1767029447561,-674.66,0.00023559,2]
[400021497,1767029447572,-500.0,0.00023559,2]
[400021498,1767029447581,-480.31282907,0.00023559,2]
[400021499,1767029447615,-1041.66666667,0.00021298,2]
[400021500,1767029447624,-19.68717093,0.00023559,2]
[400021501,1767029447633,-784.51,0.00023559,2]
[400021502,1767029447642,-500.0,0.00023559,2]
[400021503,1767029447651,-500.0,0.00023559,2]
[400021504,1767029447660,-500.0,0.0002356,2]
[400021505,1767029447669,-500.0,0.0002356,2]
[400021506,1767029447679,-500.0,0.0002356,2]
[400021507,1767029447688,-500.0,0.0002356,2]
[400021508,1767029447697,-500.0,0.0002356,2]
[400021509,1767029447706,-500.0,0.0002356,2]
[400021510,1767029447716,-500.0,0.0002356,2]
[400021511,1767029447725,-2942.32856876,0.00023561,2]
[400021512,1767029450924,389.5,0.00011162,2]
[400021513,1767029451327,779.01,0.00012177,2]
[400021514,1767029466557,-264.32,0.00013191,2]
[400021515,1767029468105,-447.61806807,0.00013191,2]
[400021516,1767029470739,-268.0,0.00013191,2]
[400021522,1767029524776,150.0,0.00011259,2]
[400021523,1767029525250,234.16,0.00012283,2]
[400021524,1767029541426,3449.0,0.00013172,2]
[400021525,1767029605162,217.97,0.00011098,2]
[400021526,1767029605587,435.94,0.00012107,2]
[400021527,1767029605984,653.91,0.00013116,2]
[400021528,1767029687784,259.77,0.00011146,2]
[400021529,1767029688257,519.54,0.00012159,2]
[400021530,1767029688687,779.31,0.00013172,2]
[400021531,1767029768305,239.93,0.00011169,2]
[400021532,1767029768730,479.86,0.00012185,2]
[400021533,1767029830058,1178.0,0.00012,2]
[400021534,1767029848019,230.77,0.0001117,2]
[400021535,1767029848414,461.54,0.00012185,2]
[400021536,1767029927889,221.96,0.00011193,2]
[400021537,1767029928279,443.92,0.00012211,2]
[400021540,1767030008807,213.48,0.00011162,2]
[400021541,1767030009395,426.97,0.00012177,2]
[400021542,1767030090799,205.33,0.00011188,2]
[400021543,1767030091203,410.67,0.00012205,2]
[400021544,1767030170893,197.49,0.00011169,2]
[400021545,1767030171328,394.99,0.00012185,2]
[400021546,1767030224201,1589.38,0.00028767,120]
[400021547,1767030253120,189.95,0.00011218,2]
[400021548,1767030253530,379.91,0.00012238,2]
[400021549,1767030334231,182.7,0.0001115,2]
[400021550,1767030334650,365.4,0.00012164,2]
[400021551,1767030336070,-192.93810855,0.00013178,2]
[400021552,1767030338622,-155.27136063,0.00013178,2]
[400021553,1767030341252,-159.83644383,0.00013178,2]
[400021554,1767030414745,169.26,0.00011164,2]
[400021555,1767030415183,338.52,0.00012179,2]
[400021556,1767030493331,162.8,0.0001117,2]
[400021557,1767030493757,325.59,0.00012186,2]
[400021558,1767030572268,156.58,0.00011149,2]
[400021559,1767030572685,313.16,0.00012162,2]
[400021560,1767030606975,-469.74,0.00013176,2]
[400021561,1767030607000,-307.01532612,0.00013176,2]
[400021562,1767030609940,-288.76688686,0.00013176,2]
[400021580,1767030632320,-11.21778702,0.00013176,2]
[400021581,1767030632331,-444.86226174,0.00013273,2]
[400021582,1767030632347,-154.50622862,0.00013273,2]
[400021583,1767030632357,-218.61288042,0.00013273,2]
[400021584,1767030632396,-281.38711958,0.00013273,2]
[400021585,1767030632407,-343.97469635,0.00013273,2]
[400021586,1767030632418,-156.02530365,0.00013273,2]
[400021587,1767030632427,-317.08625351,0.00013273,2]
[400021588,1767030632437,-450.73050318,0.00013273,2]
[400021589,1767030632446,-500.0,0.00013273,2]
[400021590,1767030632455,-500.0,0.00013273,2]
[400021592,1767030632465,-500.0,0.00013273,2]
[400021594,1767030632474,-417.13281754,0.00013673,2]
[400021596,1767030632483,-500.0,0.00013699,2]
[400021598,1767030632493,-500.0,0.00013699,2]
[400021600,1767030632502,-506.51422642,0.00013699,2]
[400021602,1767030632512,-500.0,0.00013699,2]
[400021603,1767030632521,-500.0,0.00013699,2]
[400021604,1767030632531,-500.0,0.00013699,2]
[400021605,1767030632540,-500.0,0.00013699,2]
[400021606,1767030632549,-500.0,0.00013699,2]
[400021607,1767030632559,-500.0,0.00013699,2]
[400021608,1767030632568,-500.0,0.00013699,2]
[400021609,1767030632577,-500.0,0.00013699,2]
[400021610,1767030632588,-500.0,0.00013816,2]
[400021611,1767030632598,-500.0,0.00013816,2]
[400021612,1767030632608,-321.13398032,0.00013816,2]
[400021613,1767030632617,-500.0,0.00013816,2]
[400021614,1767030632627,-500.0,0.00013816,2]
[400021615,1767030632637,-325.13380261,0.00013816,2]
[400021616,1767030632649,-500.0,0.00013816,2]
[400021617,1767030632659,-500.0,0.00013816,2]
[400021618,1767030632669,-500.0,0.00013816,2]
[400021619,1767030632679,-1000.0,0.00013821,2]
[400021620,1767030632690,-1000.0,0.00013821,2]
[400021621,1767030632700,-500.0,0.00013821,2]
[400021622,1767030632711,-500.0,0.00013821,2]
[400021623,1767030632722,-626.32,0.00014189,2]
[400021624,1767030632731,-400.0,0.00014247,2]
[400021625,1767030632741,-1000.0,0.00014247,2]
[400021626,1767030632750,-1500.0,0.00014368,2]
[400021627,1767030632761,-500.0,0.00014368,2]
[400021628,1767030632771,-782.9,0.00015203,2]
[400021629,1767030632780,-177.0,0.00015237,2]
[400021630,1767030632791,-500.0,0.00015262,2]
[400021631,1767030632802,-939.48,0.00016216,2]
[400021632,1767030632811,-517.64006576,0.00016384,2]
[400021633,1767030632821,-1096.06,0.0001723,2]
[400021634,1767030632830,-204.0,0.00017237,2]
[400021635,1767030632839,-1252.64,0.00018243,2]
[400021636,1767030632848,-1041.66666667,0.00018519,2]
[400021637,1767030632857,-231.0,0.00019237,2]
[400021638,1767030632867,-1409.22,0.00019257,2]
[400021639,1767030632876,-827.80208233,0.00019297,2]
[400021640,1767030632886,-500.0,0.00019397,3]
[400021641,1767030632896,-161.0,0.00019397,3]
[400021642,1767030632905,-463.30017149,0.00019731,2]
[400021643,1767030632915,-1565.8,0.0002027,2]
[400021644,1767030632924,-895.87460407,0.0002062,2]
[400021645,1767030632933,-338.80869012,0.0002062,2]
[400021646,1767030632943,-517.64006576,0.0002067,2]
[400021647,1767030632952,-588.08253867,0.00020769,2]
[400021648,1767030632962,-1045.48006875,0.00020769,2]
[400021649,1767030632971,-326.71252148,0.00020769,2]
[400021650,1767030632980,-172.32153339,0.00020989,5]
[400021651,1767030632989,-259.67442493,0.00020989,5]
[400021652,1767030632999,-258.0,0.00021237,2]
[400021653,1767030633009,-565.17810202,0.00021243,5]
[400021654,1767030633019,-205.97925596,0.00021626,2]
[400021655,1767030633028,-500.0,0.00021626,2]
[400021656,1767030633039,-215.45940485,0.00021626,2]
[400021666,1767030638508,-236.41101742,0.00013816,2]
[400021667,1767030638519,-500.0,0.00013816,2]
[400021668,1767030638529,-284.54059515,0.00021626,2]
[400021669,1767030638539,-500.0,0.00021626,2]
[400021670,1767030638548,-418.2542571,0.00021626,2]
[400021671,1767030638558,-500.0,0.00021626,2]
[400021672,1767030638568,-500.0,0.00021626,2]
[400021673,1767030638578,-500.0,0.00021626,2]
[400021674,1767030638588,-500.0,0.00021626,2]
[400021675,1767030638597,-155.16392133,0.00021626,2]
[400021676,1767030638607,-500.0,0.00021626,2]
[400021677,1767030638616,-230.77441877,0.0002171,2]
[400021678,1767030638626,-500.0,0.00021816,2]
[400021679,1767030638635,-500.0,0.00021816,2]
[400021680,1767030638644,-7608.2119047,0.00021817,2]
[400021681,1767030638676,-37410.80606325,0.00021817,2]
[400021682,1767030638694,-240.54501713,0.0002182,2]
[400021683,1767030638705,-827.8020823,0.00021871,2]
[400021684,1767030638715,-500.0,0.00021916,2]
[400021685,1767030638724,-1000.0,0.00021917,2]
[400021686,1767030638737,-500.0,0.00021917,2]
[400021687,1767030638747,-500.0,0.00021917,2]
[400021688,1767030638756,-1000.0,0.00021917,2]
[400021689,1767030638766,-500.0,0.00021917,2]
[400021690,1767030638775,-500.0,0.00021917,2]
[400021691,1767030638785,-500.0,0.00021917,2]
[400021692,1767030638794,-789.39,0.00021917,2]
[400021693,1767030638804,-1248.30654747,0.00021917,2]
[400021694,1767030638813,-500.0,0.00021917,2]
[400021695,1767030638823,-500.0,0.00021917,2]
[400021696,1767030638832,-245.40571301,0.00021917,2]
[400021697,1767030638841,-3295.15705518,0.00021917,2]
[400021698,1767030638853,-435.51911545,0.00021917,2]
[400021699,1767030638865,-244.67382937,0.00021917,2]
[400021700,1767030638874,-457.31631618,0.00021917,2]
[400021701,1767030638886,-42.68368382,0.00021917,2]
[400021702,1767030638895,-256.39626837,0.00021917,2]
[400021703,1767030639075,-243.60373163,0.00021917,2]
[400021704,1767030639094,-37.43626837,0.00021917,2]
[400021705,1767030639199,-667.67373163,0.00021917,2]
[400021706,1767030639210,-500.0,0.00021917,2]
[400021707,1767030639220,-738.23,0.00021917,2]
[400021708,1767030639232,-500.0,0.00021917,2]
[400021709,1767030639241,-500.0,0.00021917,2]
[400021710,1767030639251,-500.0,0.00021917,2]
[400021711,1767030639261,-500.0,0.00021917,2]
[400021712,1767030639271,-500.0,0.00021917,2]
[400021713,1767030639280,-744.65,0.00021917,2]
[400021714,1767030639290,-500.0,0.00021917,2]
[400021715,1767030639300,-500.0,0.00021917,2]
[400021716,1767030639309,-805.44,0.00021917,2]
[400021717,1767030639319,-500.0,0.00021917,2]
[400021718,1767030639328,-500.0,0.00021917,2]
[400021719,1767030639338,-440.0,0.00022,2]
[400021720,1767030639347,-500.0,0.00022179,2]
[400021721,1767030639356,-500.0,0.0002219,2]
[400021722,1767030639366,-1000.0,0.00022191,2]
[400021723,1767030639375,-500.0,0.00022191,2]
[400021724,1767030639384,-500.0,0.00022191,2]
[400021725,1767030639394,-153.21243494,0.00022191,2]
[400021731,1767030640776,-3e-08,0.00022191,2]
[400021732,1767030640787,-414.04031577,0.00022191,2]
[400021733,1767030640798,-432.74724926,0.00022191,2]
[400021734,1767030640807,-142.00774611,0.00022191,2]
[400021735,1767030640818,-357.99225389,0.00022191,2]
[400021737,1767030640828,-428.18105277,0.00022191,2]
[400021740,1767030645686,-71.81894723,0.00022191,2]
[400021741,1767030645697,-500.0,0.00022191,2]
[400021742,1767030645707,-478.77393115,0.00022191,2]
[400021743,1767030645718,-310.61606885,0.00022191,2]
[400021744,1767030645727,-1248.30654747,0.00022191,2]
[400021745,1767030645736,-500.0,0.00022191,2]
[400021746,1767030645746,-87.84565628,0.00022191,2]
[400021747,1767030645760,-3000.00000002,0.00022191,2]
[400021767,1767030646590,-887.5043437,0.00022191,2]
[400021770,1767030646602,-500.0,0.00022191,2]
[400021772,1767030646612,-500.0,0.00022191,2]
[400021774,1767030646621,-548.61181388,0.00022191,2]
[400021776,1767030646634,-156.49818612,0.00022191,2]
[400021778,1767030646643,-500.0,0.00022191,2]
[400021780,1767030646653,-738.23,0.00022191,2]
[400021782,1767030646663,-500.0,0.00022191,2]
[400021784,1767030646672,-500.0,0.00022191,2]
[400021786,1767030646682,-49.83481305,0.00022191,2]
[400022064,1767030860092,397.15,0.00011137,2]
[400022065,1767030860534,794.31,0.0001215,2]
[400022066,1767030860950,1191.46,0.00013162,2]
[400022067,1767030910654,289.26852276,0.00025434,120]
[400022068,1767030910685,260.08289648,0.00025434,120]
[400022069,1767030939999,525.24,0.00011108,2]
[400022070,1767030940270,1050.48,0.00012118,2]
[400022071,1767030940667,1575.72,0.00013128,2]
[400022072,1767031018725,498.49,0.00011081,2]
[400022073,1767031019140,996.99,0.00012089,2]
[400022074,1767031019544,1495.48,0.00013096,2]
[400022076,1767031099072,460.43,0.00011069,2]
[400022077,1767031099512,920.85,0.00012075,2]
[400022078,1767031099970,1381.28,0.00013081,2]
[400022079,1767031178513,425.27,0.00011144,2]
[400022080,1767031178917,850.53,0.00012157,2]
[400022081,1767031179319,1275.8,0.0001317,2]
[400022082,1767031258883,392.79,0.0001111,2]
[400022083,1767031259279,785.58,0.0001212,2]
[400022084,1767031259705,1178.37,0.0001313,2]
[400022086,1767031339614,362.8,0.00011084,2]
[400022087,1767031340016,725.59,0.00012092,2]
[400022088,1767031340402,1088.39,0.000131,2]
[400022091,1767031418819,335.09,0.00011073,2]
[400022092,1767031419407,670.18,0.0001208,2]
[400022093,1767031419611,1005.28,0.00013087,2]
[400022094,1767031497604,309.5,0.00011074,2]
[400022095,1767031497992,619.01,0.00012081,2]
[400022096,1767031498502,928.51,0.00013087,2]
[400022097,1767031576210,285.87,0.00011088,2]
[400022098,1767031576609,571.74,0.00012096,2]
[400022099,1767031576996,857.61,0.00013104,2]
[400022100,1767031656278,264.04,0.00011087,2]
[400022101,1767031656687,528.08,0.00012095,2]
[400022102,1767031657240,792.12,0.00013103,2]
[400022103,1767031680296,199.09,9.99e-05,2]
[400022104,1767031680622,199.08,9.99e-05,2]
[400022105,1767031736427,243.88,0.0001111,2]
[400022106,1767031736851,487.75,0.0001212,2]
[400022107,1767031737316,731.63,0.0001313,2]
[400022108,1767031816183,225.25,0.00011451,2]
[400022109,1767031816585,450.5,0.00012492,2]
[400022136,1767031832484,-1400.3074012,0.00013191,2]
[400022138,1767031832494,-1200.0,0.00013272,2]
[400022149,1767031832675,-500.0,0.00013273,2]
[400022151,1767031832691,-500.0,0.00013273,2]
[400022152,1767031832702,-500.0,0.00013273,2]
[400022154,1767031832713,-228.47688228,0.00013273,2]
[400022155,1767031832722,-500.0,0.00013273,2]
[400022157,1767031832732,-500.0,0.00013273,2]
[400022158,1767031832741,-675.76,0.00013533,2]
[400022160,1767031832751,-300.0,0.00013673,2]
[400022161,1767031832761,-5315.2509345,0.00013695,2]
[400022163,1767031832771,-500.0,0.00013695,2]
[400022165,1767031832780,-500.0,0.00013695,2]
[400022166,1767031832789,-500.0,0.00013695,2]
[400022168,1767031832799,-500.0,0.00013695,2]
[400022170,1767031832808,-500.0,0.00013695,2]
[400022171,1767031832816,-500.0,0.00013695,2]
[400022173,1767031832826,-500.0,0.00013695,2]
[400022175,1767031832835,-500.0,0.00013695,2]
[400022176,1767031832844,-633.01780889,0.00013695,2]
[400022178,1767031832854,-500.0,0.00013695,2]
[400022180,1767031832863,-783.765161,0.00013699,2]
[400022182,1767031832874,-500.0,0.00013699,2]
[400022183,1767031832884,-500.0,0.00013699,2]
[400022185,1767031832894,-500.0,0.00013699,2]
[400022186,1767031832903,-500.0,0.00013699,2]
[400022188,1767031832912,-500.0,0.00013699,2]
[400022189,1767031832921,-500.0,0.00013699,2]
[400022191,1767031832930,-527.84192683,0.00013699,2]
[400022192,1767031832939,-500.0,0.00013699,2]
[400022193,1767031832949,-258.29852709,0.00013699,2]
[400022194,1767031832958,-1000.0,0.00013821,2]
[400022195,1767031832967,-1000.0,0.00013821,2]
[400022196,1767031832977,-1000.0,0.00013821,2]
[400022197,1767031832987,-1000.0,0.00013821,2]
[400022198,1767031832996,-1000.0,0.00013821,2]
[400022199,1767031833006,-207.30691018,0.00014146,2]
[400022200,1767031833015,-600.0,0.00014221,2]
[400022201,1767031833024,-500.0,0.00014247,2]
[400022202,1767031833034,-637.77842998,0.00014247,2]
[400022203,1767031833043,-1000.0,0.00014247,2]
[400022204,1767031833053,-1000.0,0.00014247,2]
[400022205,1767031833062,-1000.0,0.00014247,2]
[400022206,1767031833071,-1000.0,0.00014247,2]
[400022207,1767031833080,-1000.0,0.00014247,2]
[400022208,1767031833089,-500.0,0.00014363,2]
[400022209,1767031833098,-500.0,0.00014363,2]
[400022210,1767031833107,-196.37031079,0.00014363,2]
[400022211,1767031833117,-500.0,0.00014363,2]
[400022212,1767031833126,-470.52502601,0.00014363,2]
[400022213,1767031833135,-500.0,0.00014363,2]
[400022214,1767031833144,-500.0,0.00014363,2]
[400022215,1767031833154,-500.0,0.00014363,2]
[400022216,1767031833163,-500.0,0.00014363,2]
[400022217,1767031833173,-226.80116494,0.00014363,2]
[400022218,1767031833182,-1500.0,0.00014368,2]
[400022219,1767031833191,-1500.0,0.00014368,2]
[400022220,1767031833200,-1500.0,0.00014368,2]
[400022221,1767031833210,-1500.0,0.00014368,2]
[400022222,1767031833219,-1500.0,0.00014368,2]
[400022223,1767031833228,-500.0,0.00014521,2]
[400022224,1767031833238,-901.01,0.00014574,2]
[400022225,1767031833250,-900.0,0.00014768,2]
[400022226,1767031833259,-564.51499178,0.00014795,2]
[400022227,1767031833270,-1500.0,0.00014795,2]
[400022228,1767031833281,-1500.0,0.00014795,2]
[400022229,1767031833291,-1500.0,0.00014795,2]
[400022230,1767031833301,-1500.0,0.00014795,2]
[400022231,1767031833310,-323.41723311,0.00014916,2]
[400022232,1767031833320,-500.0,0.00014916,2]
[400022233,1767031833330,-1500.0,0.00014916,2]
[400022234,1767031833339,-2000.0,0.00014916,2]
[400022235,1767031833349,-1211.16874828,0.00014916,2]
[400022236,1767031833358,-2000.0,0.00014916,2]
[400022237,1767031833368,-2000.0,0.00014916,2]
[400022238,1767031833377,-929.09,0.00015019,2]
[400022239,1767031833387,-177.0,0.00015232,2]
[400022240,1767031833396,-1200.0,0.00015316,2]
[400022241,1767031833405,-2000.0,0.00015342,2]
[400022242,1767031833415,-2000.0,0.00015342,2]
[400022243,1767031833424,-2000.0,0.00015342,2]
[400022244,1767031833434,-160.0,0.0001545,2]
[400022245,1767031833443,-1000.0,0.00015464,2]
[400022246,1767031833454,-2500.0,0.00015464,2]
[400022247,1767031833465,-2500.0,0.00015464,2]
[400022248,1767031833475,-1126.26,0.00015615,2]
[400022249,1767031833484,-341.19197183,0.0001575,2]
[400022250,1767031833495,-1500.0,0.00015864,2]
[400022251,1767031833505,-2500.0,0.0001589,2]
[400022252,1767031833515,-275.85673877,0.0001589,2]
[400022253,1767031833524,-2500.0,0.0001589,2]
[400022254,1767031833535,-260.0,0.00015998,2]
[400022255,1767031833544,-3000.0,0.00016012,2]
[400022256,1767031833554,-3000.0,0.00016012,2]
[400022257,1767031833563,-500.0,0.00016306,2]
[400022258,1767031833572,-1800.0,0.00016412,2]
[400022259,1767031833582,-3000.0,0.00016438,2]
[400022260,1767031833591,-3000.0,0.00016438,2]
[400022261,1767031833601,-360.0,0.00016546,2]
[400022262,1767031833610,-3500.0,0.0001656,2]
[400022263,1767031833620,-3500.0,0.0001656,2]
[400022264,1767031833630,-1351.51,0.00016656,2]
[400022265,1767031833639,-1500.0,0.00016986,2]
[400022266,1767031833648,-1500.0,0.00016986,2]
[400022267,1767031833658,-460.0,0.00017094,2]
[400022268,1767031833668,-4000.0,0.00017108,2]
[400022269,1767031833677,-4000.0,0.00017108,2]
[400022270,1767031833687,-204.0,0.00017232,2]
[400022271,1767031833696,-220.0,0.00017642,2]
[400022272,1767031833705,-500.0,0.00017656,2]
[400022273,1767031833715,-500.0,0.00017656,2]
[400022274,1767031833724,-1576.77,0.00017697,2]
[400022275,1767031833734,-1041.66666667,0.00018501,2]
[400022276,1767031833743,-1802.02,0.00018738,2]
[400022277,1767031833752,-231.0,0.00019232,2]
[400022278,1767031833761,-163.76,0.000193,2]
[400022279,1767031833772,-157.69,0.000193,2]
[400022280,1767031833781,-2027.27,0.00019778,2]
[400022281,1767031833791,-341.19197183,0.00020195,2]
[400022282,1767031833800,-500.0,0.00020435,2]
[400022283,1767031833809,-882.9515682,0.00020435,2]
[400022284,1767031833818,-783.765161,0.00020548,2]
[400022285,1767031833827,-258.86044517,0.00020769,2]
[400022286,1767031833836,-295.84050877,0.00020769,2]
[400022287,1767031833845,-2252.52,0.00020819,2]
[400022288,1767031833855,-368.10293883,0.00021016,2]
[400022289,1767031833864,-202.09688784,0.00021167,5]
[400022290,1767031833873,-180.85959153,0.00021167,5]
[400022291,1767031833882,-220.30033387,0.00021167,5]
[400022292,1767031833891,-258.0,0.00021232,2]
[400022293,1767031833901,-177.87836458,0.00021691,5]
[400022294,1767031833910,-361.82769357,0.00021862,2]
[400022295,1767031833919,-642.60598378,0.00021862,2]
[400022296,1767031833929,-201.01538532,0.00021862,2]
[400022297,1767031833939,-7000.0,0.00021905,2]
[400022298,1767031833947,-757.93,0.00021917,2]
[400022299,1767031833956,-500.0,0.00021917,2]
[400022300,1767031833965,-194.49007806,0.00021917,2]
[400022301,1767031833975,-500.0,0.00021917,2]
[400022302,1767031833984,-513.49,0.00021917,2]
[400022303,1767031833994,-500.0,0.00021917,2]
[400022304,1767031834003,-500.0,0.00021917,2]
[400022305,1767031834012,-288.14532119,0.00021917,2]
[400022306,1767031834021,-3842.14,0.00021917,2]
[400022307,1767031834030,-500.0,0.00021917,2]
[400022308,1767031834040,-500.0,0.00021917,2]
[400022309,1767031834048,-500.0,0.00021917,2]
[400022310,1767031834058,-1000.0,0.00021917,2]
[400022311,1767031834068,-500.0,0.00021917,2]
[400022312,1767031834079,-500.0,0.00021917,2]
[400022313,1767031834088,-724.17,0.00021917,2]
[400022314,1767031834098,-676.71,0.00021917,2]
[400022315,1767031834107,-500.0,0.00021917,2]
[400022316,1767031834116,-500.0,0.00021917,2]
[400022317,1767031834125,-270.00334258,0.00021917,2]
[400022318,1767031834134,-500.0,0.00021917,2]
[400022319,1767031834143,-893.62,0.00021917,2]
[400022320,1767031834152,-500.0,0.00021917,2]
[400022321,1767031834162,-836.12,0.00021917,2]
[400022322,1767031834171,-180.59460156,0.00021917,2]
[400022323,1767031834180,-599.21077196,0.00021991,2]
[400022324,1767031834189,-385.0,0.00022,2]
[400022325,1767031834198,-182.79,0.00022081,3]
[400022326,1767031834208,-548.39,0.00022081,3]
[400022327,1767031834217,-500.0,0.0002209,2]
[400022328,1767031834227,-13512.44823144,0.00022091,2]
[400022345,1767031838713,-500.0,0.00014363,2]
[400022346,1767031838725,-500.0,0.00014363,2]
[400022347,1767031838736,-65741.82390736,0.00022091,2]
[400022348,1767031838746,-537.0862231,0.00022091,2]
[400022349,1767031838756,-3070.8864697,0.00022091,2]
[400022350,1767031838766,-365.7068031,0.00022091,2]
[400022351,1767031838776,-537.0862231,0.00022091,2]
[400022352,1767031838785,-5358.2478963,0.00022091,2]
[400022353,1767031838795,-151.0,0.00022091,2]
[400022354,1767031838805,-440.4797402,0.00022091,2]
[400022355,1767031838815,-230.227136,0.00022091,2]
[400022356,1767031838826,-230.227136,0.00022091,2]
[400022357,1767031838836,-230.227136,0.00022091,2]
[400022358,1767031838846,-230.227136,0.00022091,2]
[400022359,1767031838856,-479.854216,0.00022091,2]
[400022360,1767031838866,-479.854216,0.00022091,2]
[400022361,1767031838876,-479.854216,0.00022091,2]
[400022362,1767031838886,-479.854216,0.00022091,2]
[400022363,1767031838895,-151.0,0.00022091,2]
[400022364,1767031838905,-151.0,0.00022091,2]
[400022365,1767031838915,-2626.5273492,0.00022091,2]
[400022366,1767031838925,-151.0,0.00022091,2]
[400022367,1767031838934,-151.0,0.00022091,2]
[400022368,1767031838944,-191.908178,0.00022091,2]
[400022369,1767031838954,-151.0,0.00022091,2]
[400022370,1767031838963,-191.908178,0.00022091,2]
[400022371,1767031838972,-191.908178,0.00022091,2]
[400022372,1767031838985,-191.908178,0.00022091,2]
[400022373,1767031838995,-151.0,0.00022091,2]
[400022374,1767031839006,-174.932541,0.00022091,2]
[400022375,1767031839016,-151.0,0.00022091,2]
[400022376,1767031839026,-205.947099,0.00022091,2]
[400022377,1767031839035,-243.953312,0.00022091,2]
[400022378,1767031839045,-243.953312,0.00022091,2]
[400022379,1767031839054,-243.953312,0.00022091,2]
[400022380,1767031839063,-243.953312,0.00022091,2]
[400022381,1767031839073,-300.287003,0.00022091,2]
[400022382,1767031839083,-274.25,0.000221,2]
[400022383,1767031839092,-1000.0,0.00022187,2]
[400022384,1767031839101,-1000.0,0.00022187,2]
[400022385,1767031839111,-160.0,0.00022187,2]
[400022386,1767031839120,-1000.0,0.00022187,2]
[400022387,1767031839130,-1000.0,0.00022187,2]
[400022388,1767031839140,-160.0,0.00022187,2]
[400022389,1767031839151,-1000.0,0.00022187,2]
[400022390,1767031839160,-187.60677501,0.00022187,2]
[400022391,1767031839170,-1000.0,0.00022187,2]
[400022392,1767031839181,-1000.0,0.00022187,2]
[400022393,1767031839190,-1000.0,0.00022187,2]
[400022394,1767031839199,-1010.59868093,0.00022187,2]